fUST/lending_fUST_20250811
["ID","MTS","AMOUNT","RATE_DAILY","PERIOD"]
[378554895,1754912691014,5000.0,0.0001905,2]
[378554902,1754912707452,5000.0,0.0001905,2]
[378554903,1754912707828,10000.0,0.00018569,2]
[378554909,1754912723532,5000.0,0.0001905,2]
[378554916,1754912739464,1108.08910168,0.0001905,2]
[378554917,1754912739488,3891.91089832,0.0001905,2]
[378554923,1754912750075,-181.0190527,0.00019351,2]
[378554925,1754912753668,-280.67836938,0.00019351,2]
[378554929,1754912755981,5000.0,0.0001905,2]
[378554945,1754912774092,5000.0,0.0001905,2]
[378554947,1754912775346,454.04597976,0.00018955,2]
[378554965,1754912790130,5000.0,0.0001905,2]
[378554968,1754912798666,1921.16909741,0.000189,2]
[378554972,1754912806130,5000.0,0.0001905,2]
[378554975,1754912822563,3732.87402451,0.0001905,2]
[378554976,1754912822585,1267.12597549,0.0001905,2]
[378554978,1754912832385,7087.9115971,0.00018565,2]
[378554983,1754912838461,5000.0,0.0001905,2]
[378554985,1754912854647,5000.0,0.0001905,2]
[378554986,1754912870914,5000.0,0.0001905,2]
[378554990,1754912884363,962.84646471,0.00018811,2]
[378554992,1754912886369,5000.0,0.0001905,2]
[378554993,1754912886421,682.1159627,0.00018811,2]
[378554994,1754912886446,3165.41851028,0.00018811,2]
[378554995,1754912888464,243.70269139,0.00018811,2]
[378554996,1754912890810,973.83595481,0.00018811,2]
[378554997,1754912893046,235.35575836,0.00018811,2]
[378554998,1754912895078,193.83542666,0.00018811,2]
[378554999,1754912897680,774.56636493,0.00018811,2]
[378555000,1754912899412,500.0,0.00023,29]
[378555001,1754912901820,5000.0,0.0001905,2]
[378555005,1754912917976,5000.0,0.0001905,2]
[378555007,1754912934104,5000.0,0.0001905,2]
[378555008,1754912949585,5000.0,0.0001905,2]
[378555009,1754912965607,4413.28529357,0.0001905,2]
[378555010,1754912965631,586.71470643,0.0001905,2]
[378555011,1754912981758,5000.0,0.0001905,2]
[378555013,1754912999767,5000.0,0.0001905,2]
[378555020,1754913017414,5000.0,0.0001905,2]
[378555052,1754913031947,-277.56475006,0.00019151,2]
[378555053,1754913031956,-666.0,0.00019178,2]
[378555054,1754913031967,-160.15683092,0.00019267,2]
[378555055,1754913031977,-304.13641863,0.00019423,2]
[378555056,1754913031987,-4542.17747533,0.0001947,2]
[378555057,1754913031996,-300.0,0.00019536,2]
[378555058,1754913032006,-517.28278966,0.00019536,2]
[378555059,1754913032027,-256.50333001,0.00019536,2]
[378555061,1754913032058,-426.21388033,0.00019536,2]
[378555062,1754913032067,-300.0,0.00019537,2]
[378555065,1754913032077,-300.0,0.00019537,2]
[378555067,1754913032087,-300.0,0.00019537,2]
[378555069,1754913032097,-300.0,0.00019537,2]
[378555071,1754913032108,-4542.1774753,0.00019538,2]
[378555074,1754913032118,-2814.04,0.0001956,3]
[378555076,1754913032127,-1407.02,0.0001956,3]
[378555078,1754913032136,-703.51,0.0001956,3]
[378555080,1754913032146,-351.76,0.0001956,3]
[378555082,1754913032156,-175.88,0.0001956,3]
[378555084,1754913032165,-527.65,0.0001956,3]
[378555086,1754913032174,-29911.74864422,0.0001956,2]
[378555088,1754913032189,-20088.25135578,0.0001956,2]
[378555090,1754913032199,-1200.0,0.00019565,2]
[378555092,1754913032209,-500.0,0.00019567,2]
[378555094,1754913032219,-500.0,0.00019567,2]
[378555096,1754913032233,-363.96606716,0.00019567,2]
[378555098,1754913032242,-500.0,0.00019567,2]
[378555100,1754913032252,-339.50713796,0.00019567,2]
[378555102,1754913032262,-500.0,0.00019567,2]
[378555104,1754913032271,-622.47285429,0.00019567,2]
[378555106,1754913032280,-500.0,0.00019567,2]
[378555108,1754913032290,-460.0,0.00019567,2]
[378555110,1754913032302,-460.0,0.00019567,2]
[378555112,1754913032311,-460.0,0.00019567,2]
[378555114,1754913032321,-622.67,0.00019567,2]
[378555116,1754913032332,-460.0,0.00019567,2]
[378555118,1754913032341,-339.44026135,0.00019567,2]
[378555120,1754913032351,-460.0,0.00019567,2]
[378555122,1754913032360,-460.0,0.00019567,2]
[378555124,1754913032370,-460.0,0.00019567,2]
[378555126,1754913032382,-460.0,0.00019567,2]
[378555128,1754913032391,-460.0,0.00019567,2]
[378555130,1754913032401,-460.0,0.00019567,2]
[378555132,1754913032410,-467.5673026,0.00019567,2]
[378555134,1754913032420,-460.0,0.00019567,2]
[378555136,1754913032429,-460.0,0.00019567,2]
[378555138,1754913032439,-460.0,0.00019567,2]
[378555140,1754913032448,-734.28,0.00019568,2]
[378555142,1754913032457,-460.0,0.00019568,2]
[378555144,1754913032466,-218.57373107,0.00019568,2]
[378555146,1754913032476,-460.0,0.00019568,2]
[378555148,1754913032485,-460.0,0.00019568,2]
[378555150,1754913032495,-399.34311669,0.00019568,2]
[378555152,1754913032504,-460.0,0.00019568,2]
[378555154,1754913032514,-213.92817614,0.00019568,2]
[378555236,1754913033517,5000.0,0.0001905,2]
[378555244,1754913037605,-291.3858727,0.00019559,2]
[378555245,1754913037614,-460.0,0.00019567,2]
[378555246,1754913037624,-574.97,0.00019567,2]
[378555247,1754913037633,-261.25182386,0.00019568,2]
[378555248,1754913037643,-460.0,0.00019568,2]
[378555249,1754913037652,-460.0,0.00019568,2]
[378555250,1754913037661,-460.0,0.00019568,2]
[378555251,1754913037671,-460.0,0.00019568,2]
[378555252,1754913037681,-460.0,0.00019568,2]
[378555253,1754913037690,-460.0,0.00019568,2]
[378555254,1754913037699,-460.0,0.00019568,2]
[378555255,1754913037709,-271.89690601,0.00019568,2]
[378555256,1754913037718,-460.0,0.00019568,2]
[378555257,1754913037728,-460.0,0.00019568,2]
[378555258,1754913037737,-460.0,0.00019568,2]
[378555259,1754913037746,-460.0,0.00019568,2]
[378555260,1754913037756,-460.0,0.00019568,2]
[378555261,1754913037766,-460.0,0.00019568,2]
[378555262,1754913037775,-460.0,0.00019568,2]
[378555263,1754913037784,-460.0,0.00019568,2]
[378555264,1754913037794,-461.74789151,0.00019568,2]
[378555265,1754913037803,-463.87,0.00019568,2]
[378555266,1754913037812,-460.0,0.00019568,2]
[378555267,1754913037821,-460.0,0.00019568,2]
[378555268,1754913037831,-1214.66,0.00019568,2]
[378555269,1754913037840,-460.0,0.00019568,2]
[378555270,1754913037850,-460.0,0.00019568,2]
[378555272,1754913037859,-460.0,0.00019568,2]
[378555274,1754913037868,-460.0,0.00019568,2]
[378555276,1754913037877,-460.0,0.00019568,2]
[378555278,1754913037887,-467.41456802,0.00019568,2]
[378555280,1754913037895,-420.00086455,0.00019568,2]
[378555282,1754913037905,-462.16189847,0.00019568,2]
[378555284,1754913037914,-758.66,0.00019568,2]
[378555286,1754913037923,-460.0,0.00019568,2]
[378555288,1754913037932,-460.0,0.00019568,2]
[378555290,1754913037941,-460.0,0.00019568,2]
[378555292,1754913037950,-460.0,0.00019568,2]
[378555294,1754913037959,-460.0,0.00019568,2]
[378555296,1754913037968,-460.0,0.00019568,2]
[378555298,1754913037979,-460.0,0.00019568,2]
[378555300,1754913037993,-460.0,0.00019568,2]
[378555302,1754913038002,-699.14,0.00019568,2]
[378555304,1754913038011,-460.0,0.00019568,2]
[378555306,1754913038021,-462.57621199,0.00019568,2]
[378555308,1754913038029,-3549.71,0.00019568,2]
[378555310,1754913038039,-460.0,0.00019568,2]
[378555312,1754913038048,-460.0,0.00019568,2]
[378555314,1754913038058,-460.0,0.00019568,2]
[378555316,1754913038068,-460.0,0.00019568,2]
[378555318,1754913038077,-460.0,0.00019568,2]
[378555320,1754913038086,-555.85,0.00019568,2]
[378555322,1754913038096,-653.93,0.00019568,2]
[378555324,1754913038105,-460.0,0.00019568,2]
[378555326,1754913038115,-460.0,0.00019568,2]
[378555327,1754913038125,-513.31,0.00019568,2]
[378555330,1754913038137,-460.0,0.00019568,2]
[378555332,1754913038147,-3436.82,0.00019568,2]
[378555334,1754913038159,-5474.64,0.00019568,2]
[378555336,1754913038168,-460.0,0.00019568,2]
[378555338,1754913038177,-195.96108979,0.00019568,2]
[378555340,1754913038187,-460.0,0.00019568,2]
[378555341,1754913038196,-460.0,0.00019568,2]
[378555343,1754913038205,-460.0,0.00019568,2]
[378555345,1754913038215,-460.0,0.00019568,2]
[378555347,1754913038228,-476.56346052,0.00019568,2]
[378555350,1754913038238,-534.27420444,0.00019568,2]
[378555351,1754913038248,-1246.49,0.00019568,2]
[378555353,1754913038257,-460.0,0.00019568,2]
[378555356,1754913038267,-532.86,0.00019568,2]
[378555358,1754913038278,-365.18127998,0.00019568,2]
[378555360,1754913038288,-543.85048818,0.00019568,2]
[378555362,1754913038298,-460.0,0.00019568,2]
[378555364,1754913038309,-787.17,0.00019568,2]
[378555366,1754913038319,-460.0,0.00019568,2]
[378555368,1754913038328,-460.0,0.00019568,2]
[378555370,1754913038337,-460.0,0.00019568,2]
[378555372,1754913038347,-460.0,0.00019568,2]
[378555374,1754913038357,-1041.68,0.00019568,2]
[378555376,1754913038367,-460.0,0.00019568,2]
[378555378,1754913038376,-460.0,0.00019568,2]
[378555380,1754913038385,-460.0,0.00019568,2]
[378555382,1754913038394,-460.0,0.00019568,2]
[378555384,1754913038403,-460.0,0.00019568,2]
[378555386,1754913038412,-460.0,0.00019568,2]
[378555388,1754913038421,-460.0,0.00019568,2]
[378555390,1754913038430,-460.66,0.00019568,2]
[378555392,1754913038440,-460.0,0.00019568,2]
[378555394,1754913038449,-460.0,0.00019568,2]
[378555396,1754913038457,-460.0,0.00019568,2]
[378555398,1754913038466,-460.0,0.00019568,2]
[378555400,1754913038475,-460.0,0.00019568,2]
[378555402,1754913038485,-460.0,0.00019568,2]
[378555403,1754913038493,-460.0,0.00019568,2]
[378555406,1754913038503,-460.0,0.00019569,2]
[378555408,1754913038512,-460.0,0.00019569,2]
[378555410,1754913038522,-460.0,0.00019569,2]
[378555412,1754913038531,-460.0,0.00019569,2]
[378555414,1754913038540,-535.89,0.00019569,2]
[378555416,1754913038550,-630.86,0.00019569,2]
[378555418,1754913038559,-460.0,0.00019569,2]
[378555420,1754913038570,-1181.48,0.00019569,2]
[378555422,1754913038579,-893.39,0.00019569,2]
[378555424,1754913038587,-460.0,0.00019569,2]
[378555426,1754913038597,-460.0,0.00019569,2]
[378555428,1754913038606,-460.0,0.00019569,2]
[378555430,1754913038615,-460.0,0.00019569,2]
[378555432,1754913038624,-460.0,0.00019569,2]
[378555434,1754913038633,-460.0,0.00019569,2]
[378555435,1754913038642,-460.0,0.00019569,2]
[378555436,1754913038652,-625.54,0.00019569,2]
[378555438,1754913038661,-1663.64,0.00019569,2]
[378555440,1754913038670,-1663.64,0.00019569,2]
[378555442,1754913038680,-1663.64,0.00019569,2]
[378555443,1754913038689,-460.0,0.00019569,2]
[378555445,1754913038698,-460.0,0.00019569,2]
[378555446,1754913038707,-903.38,0.00019569,2]
[378555448,1754913038716,-369.03331529,0.00019569,2]
[378555450,1754913038725,-460.0,0.00019569,2]
[378555452,1754913038734,-810.16,0.00019569,2]
[378555454,1754913038744,-460.0,0.00019569,2]
[378555455,1754913038754,-460.0,0.00019569,2]
[378555456,1754913038763,-460.0,0.00019569,2]
[378555457,1754913038772,-460.0,0.00019569,2]
[378555458,1754913038782,-460.0,0.00019569,2]
[378555459,1754913038791,-460.0,0.00019569,2]
[378555460,1754913038800,-460.0,0.00019569,2]
[378555461,1754913038809,-460.0,0.00019569,2]
[378555462,1754913038819,-460.0,0.00019569,2]
[378555463,1754913038828,-504.36548527,0.00019569,2]
[378555464,1754913038837,-460.0,0.00019569,2]
[378555465,1754913038846,-460.0,0.00019569,2]
[378555466,1754913038856,-582.6,0.00019569,2]
[378555467,1754913038865,-460.0,0.00019569,2]
[378555468,1754913038875,-460.0,0.00019569,2]
[378555469,1754913038884,-537.42,0.00019569,2]
[378555470,1754913038893,-500.0,0.00019569,2]
[378555471,1754913038904,-500.0,0.00019569,2]
[378555472,1754913038913,-500.0,0.00019569,2]
[378555473,1754913038922,-460.0,0.00019569,2]
[378555474,1754913038931,-460.0,0.00019569,2]
[378555475,1754913038940,-390.77307689,0.00019569,2]
[378555476,1754913038949,-1144.89838027,0.00019569,2]
[378555477,1754913038958,-1144.89838027,0.00019569,2]
[378555478,1754913038967,-1144.89838027,0.00019569,2]
[378555479,1754913038976,-1144.89838027,0.00019569,2]
[378555480,1754913038986,-1144.89838027,0.00019569,2]
[378555481,1754913038995,-1144.89838027,0.00019569,2]
[378555482,1754913039004,-1144.89838027,0.00019569,2]
[378555483,1754913039014,-1144.89838027,0.00019569,2]
[378555484,1754913039023,-1144.89838027,0.00019569,2]
[378555485,1754913039033,-1144.89838027,0.00019569,2]
[378555486,1754913039042,-1144.89838027,0.00019569,2]
[378555488,1754913039051,-1144.89838027,0.00019569,2]
[378555490,1754913039063,-1144.89838027,0.00019569,2]
[378555492,1754913039073,-1144.89838027,0.00019569,2]
[378555494,1754913039082,-1144.89838027,0.00019569,2]
[378555496,1754913039091,-1144.89838027,0.00019569,2]
[378555498,1754913039100,-20252.38884843,0.0001957,2]
[378555500,1754913039109,-460.0,0.0001957,2]
[378555502,1754913039119,-460.0,0.0001957,2]
[378555503,1754913039128,-460.0,0.0001957,2]
[378555504,1754913039137,-460.0,0.0001957,2]
[378555505,1754913039147,-460.0,0.0001957,2]
[378555506,1754913039156,-460.0,0.0001957,2]
[378555507,1754913039166,-460.0,0.0001957,2]
[378555508,1754913039175,-460.0,0.0001957,2]
[378555509,1754913039185,-460.0,0.0001957,2]
[378555510,1754913039194,-462.8670049,0.0001957,2]
[378555511,1754913039204,-460.0,0.0001957,2]
[378555512,1754913039214,-460.0,0.0001957,2]
[378555513,1754913039224,-460.0,0.0001957,2]
[378555514,1754913039238,-460.0,0.0001957,2]
[378555516,1754913039247,-460.0,0.0001957,2]
[378555518,1754913039257,-460.0,0.0001957,2]
[378555519,1754913039268,-460.0,0.0001957,2]
[378555520,1754913039278,-1446.05,0.0001957,2]
[378555521,1754913039287,-460.0,0.0001957,2]
[378555523,1754913039296,-460.0,0.0001957,2]
[378555524,1754913039309,-1282.92,0.0001957,2]
[378555525,1754913039318,-1818.25,0.0001957,2]
[378555526,1754913039328,-608.81,0.0001957,2]
[378555527,1754913039337,-460.0,0.0001957,2]
[378555528,1754913039346,-460.0,0.0001957,2]
[378555529,1754913039356,-460.0,0.0001957,2]
[378555530,1754913039365,-460.0,0.0001957,2]
[378555531,1754913039375,-460.0,0.0001957,2]
[378555532,1754913039384,-460.0,0.0001957,2]
[378555533,1754913039394,-460.0,0.0001957,2]
[378555534,1754913039403,-460.0,0.0001957,2]
[378555535,1754913039412,-1141.48,0.0001957,2]
[378555536,1754913039421,-460.0,0.0001957,2]
[378555537,1754913039431,-1107.89,0.0001957,2]
[378555538,1754913039440,-954.93,0.0001957,2]
[378555539,1754913039450,-937.1,0.0001957,2]
[378555540,1754913039459,-460.0,0.0001957,2]
[378555541,1754913039468,-460.0,0.0001957,2]
[378555542,1754913039478,-460.0,0.0001957,2]
[378555543,1754913039488,-460.0,0.0001957,2]
[378555544,1754913039497,-22581.66709318,0.0001957,2]
[378555545,1754913039507,-460.0,0.0001957,2]
[378555546,1754913039517,-460.0,0.0001957,2]
[378555547,1754913039527,-920.08,0.0001957,2]
[378555548,1754913039537,-803.61,0.0001957,2]
[378555549,1754913039546,-460.0,0.0001957,2]
[378555550,1754913039555,-460.0,0.0001957,2]
[378555551,1754913039567,-460.0,0.0001957,2]
[378555552,1754913039576,-460.0,0.0001957,2]
[378555553,1754913039586,-503.23,0.0001957,2]
[378555554,1754913039595,-686.76,0.0001957,2]
[378555556,1754913039604,-460.0,0.0001957,2]
[378555558,1754913039614,-500.0,0.0001957,2]
[378555559,1754913039624,-955.99,0.0001957,2]
[378555561,1754913039633,-460.0,0.0001957,2]
[378555563,1754913039642,-460.0,0.0001957,2]
[378555565,1754913039652,-460.0,0.0001957,2]
[378555568,1754913039662,-1123.32,0.0001957,2]
[378555570,1754913039671,-932.73,0.0001957,2]
[378555571,1754913039680,-460.0,0.0001957,2]
[378555573,1754913039689,-469.7619666,0.0001957,2]
[378555575,1754913039698,-500.0,0.0001957,2]
[378555577,1754913039708,-276.8107237,0.00019573,2]
[378555579,1754913039717,-500.0,0.00019573,2]
[378555581,1754913039726,-500.0,0.00019573,2]
[378555583,1754913039736,-500.0,0.00019573,2]
[378555585,1754913039745,-500.0,0.00019573,2]
[378555587,1754913039754,-500.0,0.00019573,2]
[378555589,1754913039763,-500.0,0.00019573,2]
[378555592,1754913039773,-371.51471519,0.00019573,2]
[378555594,1754913039782,-500.0,0.00019573,2]
[378555595,1754913039791,-500.0,0.00019573,2]
[378555597,1754913039800,-500.0,0.00019573,2]
[378555599,1754913039812,-358.87746642,0.00019573,2]
[378555601,1754913039821,-500.0,0.00019573,2]
[378555603,1754913039831,-500.0,0.00019573,2]
[378555605,1754913039840,-500.0,0.00019573,2]
[378555607,1754913039849,-500.0,0.00019573,2]
[378555609,1754913039858,-501.80345153,0.00019573,2]
[378555611,1754913039868,-500.0,0.00019573,2]
[378555613,1754913039878,-500.0,0.00019573,2]
[378555615,1754913039887,-420.10754665,0.00019573,2]
[378555617,1754913039897,-500.0,0.00019573,2]
[378555619,1754913039906,-500.0,0.00019573,2]
[378555621,1754913039916,-500.0,0.00019573,2]
[378555623,1754913039924,-500.0,0.00019573,2]
[378555625,1754913039934,-500.0,0.00019573,2]
[378555627,1754913039943,-500.0,0.00019573,2]
[378555629,1754913039952,-516.5355599,0.00019573,2]
[378555631,1754913039961,-4542.1774753,0.00019606,2]
[378555633,1754913039971,-282.0,0.00019654,2]
[378555635,1754913039980,-508.35296366,0.00019658,2]
[378555637,1754913039990,-189.5078021,0.00019658,2]
[378555639,1754913039999,-1663.64,0.00019668,2]
[378555641,1754913040008,-1663.64,0.00019668,2]
[378555643,1754913040018,-500.0,0.00019668,2]
[378555645,1754913040027,-500.0,0.00019668,2]
[378555647,1754913040037,-678.8,0.00019669,2]
[378555649,1754913040046,-4214.99,0.00019669,2]
[378555652,1754913040055,-460.0,0.00019669,2]
[378555654,1754913040066,-1663.64,0.00019669,2]
[378555655,1754913040076,-1663.64,0.00019669,2]
[378555657,1754913040085,-1663.64,0.00019669,2]
[378555659,1754913040094,-1663.64,0.00019669,2]
[378555662,1754913040104,-1663.64,0.00019669,2]
[378555664,1754913040113,-1663.64,0.00019669,2]
[378555666,1754913040123,-1663.64,0.00019669,2]
[378555667,1754913040131,-1663.64,0.00019669,2]
[378555669,1754913040140,-1663.64,0.00019669,2]
[378555671,1754913040150,-1663.64,0.00019669,2]
[378555673,1754913040159,-1663.64,0.00019669,2]
[378555675,1754913040168,-1663.64,0.00019669,2]
[378555677,1754913040178,-1663.64,0.00019669,2]
[378555679,1754913040187,-1663.64,0.00019669,2]
[378555681,1754913040196,-1663.64,0.00019669,2]
[378555683,1754913040205,-1663.64,0.00019669,2]
[378555686,1754913040215,-1663.64,0.00019669,2]
[378555688,1754913040225,-1663.64,0.00019669,2]
[378555689,1754913040237,-1663.87808819,0.00019669,2]
[378555692,1754913040247,-460.0,0.00019669,2]
[378555694,1754913040257,-1965.92,0.00019669,2]
[378555696,1754913040267,-918.77,0.00019669,2]
[378555698,1754913040277,-1068.84,0.00019669,2]
[378555700,1754913040287,-460.0,0.00019669,2]
[378555702,1754913040296,-460.0,0.00019669,2]
[378555704,1754913040306,-2626.12,0.00019669,2]
[378555705,1754913040317,-460.0,0.00019669,2]
[378555707,1754913040327,-3308.25,0.00019669,2]
[378555710,1754913040337,-739.54,0.00019669,2]
[378555712,1754913040346,-460.0,0.00019669,2]
[378555714,1754913040356,-460.0,0.00019669,2]
[378555716,1754913040365,-460.0,0.00019669,2]
[378555718,1754913040374,-460.0,0.00019669,2]
[378555720,1754913040383,-460.0,0.00019669,2]
[378555721,1754913040393,-460.0,0.00019669,2]
[378555723,1754913040402,-500.0,0.00019669,2]
[378555726,1754913040412,-151.04937474,0.00019669,2]
[378555728,1754913040420,-358.03180216,0.00019669,2]
[378555729,1754913040430,-2036.54,0.00019669,2]
[378555732,1754913040439,-1389.85,0.00019669,2]
[378555734,1754913040448,-369540.15573353,0.0001967,2]
[378555736,1754913040457,-460.0,0.0001967,2]
[378555738,1754913040466,-809.39,0.0001967,2]
[378555739,1754913040475,-460.0,0.00019671,2]
[378555741,1754913040484,-460.0,0.00019671,2]
[378555743,1754913040494,-460.0,0.00019671,2]
[378555746,1754913040507,-356.30634282,0.00019671,2]
[378555748,1754913040516,-460.0,0.00019671,2]
[378555750,1754913040526,-460.0,0.00019671,2]
[378555752,1754913040535,-460.0,0.00019671,2]
[378555754,1754913040545,-460.0,0.00019671,2]
[378555756,1754913040555,-460.0,0.00019671,2]
[378555758,1754913040572,-315.01947571,0.00019671,2]
[378555760,1754913040585,-503.17161521,0.00019671,2]
[378555762,1754913040594,-460.0,0.00019671,2]
[378555764,1754913040604,-460.0,0.00019671,2]
[378555766,1754913040613,-460.0,0.00019671,2]
[378555768,1754913040622,-460.0,0.00019671,2]
[378555770,1754913040632,-460.0,0.00019671,2]
[378555772,1754913040641,-462.20132621,0.00019671,2]
[378555774,1754913040650,-460.0,0.00019671,2]
[378555776,1754913040659,-460.0,0.00019671,2]
[378555778,1754913040669,-460.0,0.00019671,2]
[378555780,1754913040678,-460.0,0.00019671,2]
[378555782,1754913040687,-460.0,0.00019671,2]
[378555783,1754913040696,-460.0,0.00019671,2]
[378555785,1754913040705,-460.0,0.00019671,2]
[378555787,1754913040715,-460.0,0.00019671,2]
[378555789,1754913040724,-460.0,0.00019671,2]
[378555791,1754913040734,-460.0,0.00019671,2]
[378555793,1754913040743,-460.0,0.00019671,2]
[378555795,1754913040752,-460.0,0.00019671,2]
[378555797,1754913040762,-460.0,0.00019671,2]
[378555799,1754913040771,-460.0,0.00019671,2]
[378555801,1754913040780,-460.0,0.00019671,2]
[378555803,1754913040790,-460.0,0.00019671,2]
[378555805,1754913040801,-460.0,0.00019671,2]
[378555807,1754913040813,-460.0,0.00019671,2]
[378555809,1754913040823,-460.0,0.00019671,2]
[378555811,1754913040833,-460.0,0.00019671,2]
[378555813,1754913040843,-460.0,0.00019671,2]
[378555815,1754913040852,-460.0,0.00019671,2]
[378555817,1754913040861,-460.0,0.00019671,2]
[378555819,1754913040871,-460.0,0.00019671,2]
[378555821,1754913040881,-460.0,0.00019671,2]
[378555823,1754913040891,-460.0,0.00019671,2]
[378555825,1754913040900,-461.21331682,0.00019671,2]
[378555827,1754913040911,-460.0,0.00019671,2]
[378555829,1754913040921,-500.0,0.00019671,2]
[378555831,1754913040931,-500.0,0.00019671,2]
[378555833,1754913040940,-460.0,0.00019671,2]
[378555835,1754913040950,-460.0,0.00019671,2]
[378555837,1754913040960,-460.0,0.00019671,2]
[378555839,1754913040970,-460.0,0.00019671,2]
[378555841,1754913040979,-460.0,0.00019671,2]
[378555843,1754913040989,-460.0,0.00019671,2]
[378555845,1754913040998,-460.0,0.00019671,2]
[378555847,1754913041008,-460.0,0.00019671,2]
[378555849,1754913041017,-154.31697813,0.00019671,2]
[378555851,1754913041029,-460.0,0.00019671,2]
[378555853,1754913041038,-460.0,0.00019671,2]
[378555855,1754913041047,-154.23083907,0.00019671,2]
[378555857,1754913041057,-460.0,0.00019671,2]
[378555859,1754913041069,-460.0,0.00019671,2]
[378555861,1754913041078,-460.0,0.00019671,2]
[378555863,1754913041090,-232.76533769,0.00019671,2]
[378555865,1754913041103,-460.0,0.00019671,2]
[378555867,1754913041113,-460.0,0.00019671,2]
[378555869,1754913041123,-500.0,0.00019671,2]
[378555872,1754913041133,-500.0,0.00019671,2]
[378555874,1754913041143,-460.0,0.00019671,2]
[378555876,1754913041153,-460.0,0.00019671,2]
[378555877,1754913041163,-464.41098678,0.00019671,2]
[378555880,1754913041174,-460.0,0.00019671,2]
[378555881,1754913041183,-460.0,0.00019671,2]
[378555883,1754913041193,-460.0,0.00019671,2]
[378555885,1754913041203,-460.0,0.00019671,2]
[378555887,1754913041212,-460.0,0.00019671,2]
[378555889,1754913041223,-460.0,0.00019671,2]
[378555891,1754913041239,-1209.42,0.00019671,2]
[378555893,1754913041249,-460.0,0.00019671,2]
[378555896,1754913041260,-460.0,0.00019671,2]
[378555898,1754913041271,-460.0,0.00019671,2]
[378555900,1754913041280,-1129.64,0.00019671,2]
[378555901,1754913041290,-460.0,0.00019671,2]
[378555903,1754913041299,-460.0,0.00019671,2]
[378555905,1754913041311,-460.0,0.00019671,2]
[378555907,1754913041321,-460.0,0.00019671,2]
[378555909,1754913041331,-460.0,0.00019671,2]
[378555911,1754913041340,-460.0,0.00019671,2]
[378555913,1754913041349,-722.47,0.00019671,2]
[378555915,1754913041359,-460.0,0.00019671,2]
[378555917,1754913041368,-460.0,0.00019671,2]
[378555935,1754913041572,-460.0,0.00019671,2]
[378555936,1754913041582,-460.0,0.00019671,2]
[378555937,1754913041592,-460.0,0.00019671,2]
[378555938,1754913041602,-465.12965729,0.00019671,2]
[378555939,1754913041612,-460.0,0.00019671,2]
[378555940,1754913041621,-463.75594446,0.00019671,2]
[378555941,1754913041630,-283.35434738,0.00019671,2]
[378555942,1754913041640,-460.0,0.00019671,2]
[378555943,1754913041649,-469.3,0.00019671,2]
[378555944,1754913041659,-460.0,0.00019671,2]
[378555945,1754913041669,-1174.05,0.00019671,2]
[378555946,1754913041688,-460.0,0.00019671,2]
[378555947,1754913041697,-460.0,0.00019671,2]